fUST/lending_fUST_20240208
["ID","MTS","AMOUNT","RATE_DAILY","PERIOD"]
[313425492,1707334246266,-155.02635448,0.00027943,2]
[313425494,1707334246276,-16604.41899583,0.00027943,2]
[313425496,1707334246288,-3313.71379725,0.00027943,2]
[313425499,1707334246298,-197.94061393,0.00027943,2]
[313425501,1707334246307,-179.15995042,0.00027944,2]
[313425502,1707334246318,-2820.97195235,0.00027944,2]
[313425504,1707334246327,-4279.12,0.00027944,3]
[313425506,1707334246337,-1125.66,0.00027944,3]
[313425507,1707334246348,-500.0,0.00027945,2]
[313425508,1707334246371,-500.0,0.00027945,3]
[313425509,1707334246392,-196.15686172,0.00027945,2]
[313425510,1707334246414,-894.45,0.00027945,3]
[313425511,1707334246436,-500.0,0.00027945,3]
[313425512,1707334246461,-500.0,0.00027945,3]
[313425513,1707334246485,-500.0,0.00027945,3]
[313425514,1707334246509,-1292.89,0.00027945,3]
[313425515,1707334246528,-500.0,0.00027945,3]
[313425516,1707334246538,-500.0,0.00027945,3]
[313425517,1707334246547,-500.0,0.00027945,3]
[313425518,1707334246557,-535.13330053,0.00027945,3]
[313425552,1707334799942,5000.0,0.000201,4]
[313425553,1707334812852,1358.70066073,0.000201,5]
[313425554,1707334826845,1170.47238429,0.000201,5]
[313425555,1707335011312,1583.8500325,0.00017505,2]
[313425556,1707335048366,159.7724831,0.00017777,2]
[313425557,1707335109890,3000.0,0.00017354,2]
[313425558,1707335126510,24900.0,0.00017352,2]
[313425559,1707335129768,9147.9260092,0.00017351,2]
[313425560,1707335173700,5833.67,0.00017346,2]
[313425561,1707335235101,-240.218605,0.00018334,2]
[313425564,1707335348193,-1745.51182689,0.00018321,2]
[313425565,1707335348214,-4179.85662615,0.00018321,2]
[313425566,1707335348237,-167.15951964,0.00018322,2]
[313425567,1707335348257,-1844.38589667,0.00018322,2]
[313425568,1707335354138,-5223.83358614,0.0001832,2]
[313425569,1707335354158,-155.00620025,0.0001832,2]
[313425570,1707335354178,-200.29452823,0.00018322,2]
[313425571,1707335354198,-155.00620025,0.00018322,2]
[313425572,1707335354218,-155.00620025,0.00018323,2]
[313425573,1707335354239,-352.18460138,0.00018323,2]
[313425574,1707335354258,-1946.99903392,0.00018323,2]
[313425575,1707335354278,-500.0,0.00018323,2]
[313425576,1707335354297,-83922.89279015,0.00018323,2]
[313425577,1707335354316,-1859.71951506,0.00018324,2]
[313425578,1707335354335,-155.00620025,0.00018324,2]
[313425579,1707335354354,-20929.45735728,0.00018324,2]
[313425580,1707335354374,-20955.05859825,0.00018324,2]
[313425581,1707335354392,-161.4945607,0.00018325,2]
[313425582,1707335354413,-155.00620025,0.00018325,3]
[313425583,1707335354433,-3755.69529023,0.00018325,2]
[313425584,1707335354452,-1687.90304115,0.00018325,2]
[313425585,1707335354472,-243.81886523,0.00018326,2]
[313425586,1707335354491,-330.4947575,0.00018326,2]
[313425587,1707335354510,-357.85042828,0.00018327,2]
[313425588,1707335354530,-179.18619241,0.00018327,2]
[313425589,1707335354550,-37061.66416696,0.00018327,2]
[313425590,1707335354569,-5852.91245033,0.00018327,2]
[313425591,1707335354589,-308.624307,0.00018334,2]
[313425592,1707335354608,-1308.28747087,0.00018355,2]
[313425593,1707335354627,-573.456544,0.00018373,2]
[313425594,1707335354646,-168.566978,0.00019178,2]
[313425595,1707335354667,-5000.0,0.00019278,2]
[313425596,1707335354686,-953.79146371,0.00019675,2]
[313425597,1707335354706,-295.73444606,0.00019874,2]
[313425598,1707335354729,-2090.59510347,0.000201,2]
[313425599,1707335354750,-200.0,0.0002016,2]
[313425600,1707335354771,-500.0,0.00020822,2]
[313425601,1707335354791,-500.0,0.00020822,2]
[313425602,1707335354811,-500.0,0.00020822,2]
[313425603,1707335354831,-500.0,0.00020822,2]
[313425604,1707335354851,-500.0,0.00020822,2]
[313425605,1707335354871,-500.0,0.00020822,2]
[313425606,1707335354893,-500.0,0.00020822,2]
[313425607,1707335354916,-500.0,0.00020822,2]
[313425608,1707335354935,-499.96149211,0.00020822,2]
[313425609,1707335354955,-508.80933296,0.00020822,2]
[313425610,1707335354975,-500.0,0.00020822,2]
[313425611,1707335354996,-500.0,0.00020822,2]
[313425612,1707335355018,-500.0,0.00020822,2]
[313425613,1707335355040,-500.0,0.00020822,2]
[313425614,1707335355063,-500.0,0.00020822,2]
[313425615,1707335355084,-500.0,0.00020822,2]
[313425616,1707335355105,-500.0,0.00020822,2]
[313425617,1707335355125,-500.0,0.00020822,2]
[313425618,1707335355145,-500.0,0.00020822,2]
[313425619,1707335355166,-500.0,0.00020822,2]
[313425620,1707335355186,-500.0,0.00020822,2]
[313425621,1707335355205,-500.0,0.00020822,2]
[313425622,1707335355226,-500.0,0.00020822,2]
[313425623,1707335355247,-500.0,0.00020822,2]
[313425624,1707335355270,-500.0,0.00020822,2]
[313425625,1707335355290,-500.0,0.00020822,2]
[313425626,1707335355309,-500.0,0.00020822,2]
[313425627,1707335355434,-500.0,0.00020822,2]
[313425628,1707335355456,-500.0,0.00020822,2]
[313425629,1707335355481,-500.0,0.00020822,2]
[313425630,1707335355502,-500.0,0.00020822,2]
[313425631,1707335355521,-500.0,0.00020822,2]
[313425632,1707335355543,-500.0,0.00020822,2]
[313425633,1707335355564,-372.5,0.00020822,2]
[313425634,1707335355586,-500.0,0.00020822,2]
[313425635,1707335355607,-500.0,0.00020822,2]
[313425636,1707335355628,-505.40314075,0.00020822,2]
[313425637,1707335355649,-500.0,0.00020822,2]
[313425638,1707335355670,-500.0,0.00020822,2]
[313425639,1707335355690,-631.62993753,0.00020822,2]
[313425640,1707335355711,-448.95868527,0.00020822,2]
[313425641,1707335355734,-500.0,0.00020822,2]
[313425642,1707335355756,-500.0,0.00020822,2]
[313425643,1707335355776,-572.468,0.00020822,2]
[313425644,1707335355796,-500.0,0.00020822,2]
[313425645,1707335355817,-500.0,0.00020822,2]
[313425646,1707335355837,-500.0,0.00020822,2]
[313425647,1707335355859,-500.0,0.00020822,2]
[313425648,1707335355879,-500.0,0.00020822,2]
[313425649,1707335355900,-500.0,0.00020822,2]
[313425650,1707335355921,-500.0,0.00020822,2]
[313425651,1707335355945,-500.0,0.00020822,2]
[313425652,1707335355965,-622.11893657,0.00020822,2]
[313425653,1707335355987,-500.0,0.00020822,2]
[313425654,1707335356006,-500.0,0.00020822,2]
[313425655,1707335356025,-500.0,0.00020822,2]
[313425656,1707335356046,-500.0,0.00020822,2]
[313425657,1707335356066,-500.0,0.00020822,2]
[313425658,1707335356086,-500.0,0.00020822,2]
[313425659,1707335356106,-500.0,0.00020822,2]
[313425660,1707335356126,-272.40327447,0.00020822,2]
[313425661,1707335356146,-500.0,0.00020822,2]
[313425662,1707335356166,-500.0,0.00020822,2]
[313425663,1707335356186,-500.0,0.00020822,2]
[313425664,1707335356205,-500.0,0.00020822,2]
[313425665,1707335356226,-500.0,0.00020822,2]
[313425666,1707335356246,-500.0,0.00020822,2]
[313425667,1707335356266,-500.0,0.00020822,2]
[313425668,1707335356286,-500.0,0.00020822,2]
[313425669,1707335356306,-500.0,0.00020822,2]
[313425670,1707335356326,-500.0,0.00020822,2]
[313425671,1707335356347,-500.0,0.00020822,2]
[313425672,1707335356367,-500.0,0.00020822,2]
[313425673,1707335356389,-269.19633262,0.00020822,2]
[313425674,1707335356409,-500.0,0.00020822,2]
[313425675,1707335356429,-500.0,0.00020822,2]
[313425676,1707335356449,-500.0,0.00020822,2]
[313425677,1707335356470,-500.0,0.00020822,2]
[313425678,1707335356490,-500.0,0.00020822,2]
[313425679,1707335356510,-500.0,0.00020822,2]
[313425680,1707335356532,-500.0,0.00020822,2]
[313425681,1707335356552,-500.0,0.00020822,2]
[313425682,1707335356573,-247.0969574,0.00020822,2]
[313425683,1707335356593,-932.88744453,0.00021673,2]
[313425684,1707335356613,-166.666666,0.00021918,2]
[313425685,1707335356632,-293.20559858,0.00022,4]
[313425686,1707335356652,-326.42112036,0.00022,2]
[313425687,1707335356671,-3980.62518534,0.00022,2]
[313425688,1707335356692,-280.0,0.00022177,7]
[313425689,1707335356713,-166.666666,0.00022431,2]
[313425690,1707335356737,-166.666666,0.00022944,2]
[313425691,1707335356757,-9967.3761107,0.00023,2]
[313425692,1707335356778,-166.666666,0.00023456,2]
[313425693,1707335356800,-168.860754,0.00023649,2]
[313425694,1707335356820,-166.666666,0.00023969,2]
[313425695,1707335356839,-4039.14093432,0.00024,2]
[313425696,1707335356859,-427.22785454,0.00024085,2]
[313425697,1707335356879,-391.0,0.00024394,7]
[313425698,1707335356899,-166.666666,0.00024482,2]
[313425699,1707335356919,-2717.98041473,0.00024653,5]
[313425700,1707335356938,-1201.66555398,0.00024653,2]
[313425701,1707335356957,-400.05518616,0.00024653,2]
[313425702,1707335356977,-214.05113646,0.00024654,2]
[313425703,1707335356996,-741.39467799,0.00024654,2]
[313425704,1707335357015,-171.19115676,0.00024654,2]
[313425705,1707335357035,-951.67903154,0.00024656,2]
[313425706,1707335357054,-16249.56956684,0.00024881,2]
[313425707,1707335357073,-335.52992191,0.00025,2]
[313425708,1707335357094,-5759.09790766,0.00025,2]
[313425709,1707335364104,-164.60005171,0.00018224,2]
[313425710,1707335364124,-167.15951964,0.00021266,2]
[313425711,1707335364145,-139.36134756,0.00021267,2]
[313425759,1707335438260,-843.83159353,0.0002,2]
[313425760,1707335438270,-25.23870412,0.00021267,2]
[313425761,1707335438279,-155.00620025,0.00023106,4]
[313425762,1707335438288,-166.666666,0.00023369,2]
[313425763,1707335438297,-166.666666,0.00024006,2]
[313425764,1707335438306,-161.4945607,0.00024308,2]
[313425765,1707335438314,-164.60005168,0.00024309,2]
[313425766,1707335438323,-37061.66416696,0.00024331,2]
[313425767,1707335438332,-3755.69529023,0.00024331,2]
[313425768,1707335438341,-5852.91245033,0.00024332,2]
[313425769,1707335438350,-9967.3761107,0.00024332,2]
[313425770,1707335438359,-1745.51182689,0.00024333,2]
[313425771,1707335438368,-286.728272,0.00024334,2]
[313425772,1707335438376,-166.666666,0.00024643,2]
[313425773,1707335438385,-4179.85662615,0.00024998,2]
[313425774,1707335438394,-4732.83381239,0.00025,2]
[313425775,1707335438403,-166.666666,0.0002528,2]
[313425776,1707335438411,-13437.78,0.00025654,3]
[313425777,1707335438420,-6299.4069347,0.00025664,2]
[313425778,1707335438429,-4039.14093432,0.00025671,2]
[313425779,1707335438438,-3980.62518534,0.00025671,2]
[313425780,1707335438446,-346.95277786,0.00025671,2]
[313425781,1707335438455,-1676.21951517,0.00025673,2]
[313425782,1707335438464,-505.88267668,0.00025673,2]
[313425783,1707335438474,-329.93073591,0.00025673,2]
[313425784,1707335438482,-263.87768192,0.00025673,2]
[313425785,1707335438491,-244.26799306,0.00025673,2]
[313425786,1707335438499,-467.08040967,0.00025673,2]
[313425787,1707335438508,-352.18460138,0.00025673,2]
[313425788,1707335438517,-16680.3781918,0.00025673,2]
[313425789,1707335438526,-155.15809228,0.00025673,2]
[313425790,1707335438535,-1687.90304115,0.00025673,2]
[313425791,1707335438543,-606.80025969,0.00025673,2]
[313425792,1707335438552,-20914.12256812,0.00025673,2]
[313425793,1707335438561,-334.20798611,0.00025673,2]
[313425794,1707335438570,-329.38174346,0.00025673,2]
[313425795,1707335438578,-1197.93626073,0.00025673,2]
[313425796,1707335438587,-156.26860278,0.00025673,2]
[313425797,1707335438596,-18123.38074838,0.00025674,2]
[313425798,1707335438605,-152.5,0.00025674,2]
[313425799,1707335438614,-500.0,0.00025674,2]
[313425800,1707335438623,-458.01321518,0.00025674,2]
[313425801,1707335438632,-583.01077305,0.00025674,2]
[313425802,1707335438641,-508.052,0.00025674,2]
[313425803,1707335438650,-641.02181474,0.00025674,2]
[313425804,1707335438658,-585.82258605,0.00025674,2]
[313425805,1707335438667,-549.88429836,0.00025674,2]
[313425806,1707335438676,-236.84777084,0.00025674,2]
[313425807,1707335438685,-5000.0,0.00025675,2]
[313425808,1707335438694,-9427.90863299,0.00025675,2]
[313425809,1707335438703,-5000.0,0.00025675,2]
[313425811,1707335438716,-35588.81317812,0.00025675,2]
[313425813,1707335438725,-5000.0,0.0002568,2]
[313425814,1707335438734,-1583.56833752,0.00025685,2]
[313425816,1707335438743,-1730.85818752,0.00025843,2]
[313425817,1707335438752,-166.666666,0.00025917,2]
[313425819,1707335438761,-199.69633718,0.00026197,2]
[313425820,1707335438771,-1000.0,0.00026197,3]
[313425821,1707335438779,-166.666666,0.00026554,2]
[313425822,1707335438788,-8668.59935887,0.0002658,4]
[313425823,1707335438799,-620.23035215,0.00026729,2]
[313425824,1707335438808,-200.0,0.00026834,15]
[313425825,1707335438818,-348.0,0.00026834,15]
[313425826,1707335438828,-7088.59758568,0.00026871,2]
[313425828,1707335438837,-1382.39428642,0.00027,2]
[313425830,1707335438846,-155.00775039,0.00027,2]
[313425832,1707335438855,-181.997952,0.000271,2]
[313425834,1707335438864,-19135.13450941,0.00027121,2]
[313425836,1707335438873,-164.60005168,0.00027352,2]
[313425838,1707335438882,-590.02632581,0.00027395,2]
[313425840,1707335438891,-261.94832848,0.00027395,2]
[313425842,1707335438900,-718.01783563,0.00027395,2]
[313425844,1707335438909,-2007.2143418,0.00027395,2]
[313425846,1707335438918,-1270.39386047,0.00027395,2]
[313425848,1707335438928,-2822.01569009,0.00027395,2]
[313425850,1707335438937,-167.29092194,0.00027395,2]
[313425852,1707335438946,-500.0,0.00027397,3]
[313425854,1707335438955,-500.0,0.00027397,3]
[313425856,1707335438965,-1000.0,0.00027397,2]
[313425858,1707335438974,-500.0,0.00027397,3]
[313425860,1707335438984,-500.0,0.00027397,3]
[313425862,1707335438993,-500.0,0.00027397,3]
[313425864,1707335439002,-500.0,0.00027397,3]
[313425866,1707335439012,-500.0,0.00027397,3]
[313425868,1707335439021,-500.0,0.00027397,3]
[313425870,1707335439030,-766.26,0.00027397,3]
[313425872,1707335439040,-500.0,0.00027397,3]
[313425874,1707335439050,-500.0,0.00027397,2]
[313425876,1707335439059,-867.91,0.00027397,3]
[313425878,1707335439069,-500.0,0.00027397,3]
[313425879,1707335439079,-500.0,0.00027397,3]
[313425881,1707335439088,-500.0,0.00027397,3]
[313425883,1707335439098,-500.0,0.00027397,3]
[313425885,1707335439107,-1309.1,0.00027397,3]
[313425887,1707335439117,-554.27336056,0.00027397,3]
[313425889,1707335439127,-500.0,0.00027397,3]
[313425892,1707335439136,-500.0,0.00027397,3]
[313425893,1707335439145,-500.0,0.00027397,3]
[313425896,1707335439155,-500.0,0.00027397,3]
[313425897,1707335439163,-500.0,0.00027397,3]
[313425899,1707335439172,-500.0,0.00027397,3]
[313425901,1707335439182,-931.3,0.00027397,3]
[313425903,1707335439191,-3693.37,0.00027397,3]
[313425905,1707335439201,-500.0,0.00027397,2]
[313425908,1707335439210,-1189.47,0.00027397,3]
[313425909,1707335439221,-597.57,0.00027397,3]
[313425911,1707335439231,-500.0,0.00027397,3]
[313425914,1707335439240,-4465.38,0.00027397,3]
[313425915,1707335439249,-500.0,0.00027397,3]
[313425917,1707335439259,-1136.03,0.00027397,3]
[313425919,1707335439268,-5513.38,0.00027397,3]
[313425921,1707335439278,-722.16,0.00027397,3]
[313425924,1707335439288,-1091.76,0.00027397,3]
[313425935,1707335439389,-548.60961144,0.00027397,3]
[313425937,1707335439398,-2201.41,0.00027397,3]
[313425939,1707335439408,-460.61215802,0.00027397,3]
[313425941,1707335439417,-500.0,0.00027397,3]
[313425943,1707335439426,-505.61619828,0.00027397,3]
[313425945,1707335439439,-6807.16,0.00027397,3]
[313425947,1707335439448,-781.4,0.00027397,3]
[313425949,1707335439457,-500.0,0.00027397,3]
[313425951,1707335439469,-387.8,0.00027397,3]
[313425953,1707335439481,-500.0,0.00027397,3]
[313425955,1707335439490,-553.09,0.00027397,3]
[313425957,1707335439499,-500.0,0.00027397,3]
[313425958,1707335439509,-500.0,0.00027397,3]
[313425959,1707335439518,-1306.82,0.00027397,3]
[313425961,1707335439528,-2356.79,0.00027397,3]
[313425963,1707335439538,-153.0,0.00027452,2]
[313425965,1707335439547,-511.89299392,0.000275,2]
[313425967,1707335439556,-500.0,0.00027671,3]
[313425969,1707335439565,-500.0,0.00027671,3]
[313425971,1707335439574,-1000.0,0.00027671,2]
[313425973,1707335439584,-228.09610258,0.00027671,3]
[313425975,1707335439593,-500.0,0.00027671,3]
[313425977,1707335439602,-500.0,0.00027671,3]
[313425979,1707335439611,-500.0,0.00027671,3]
[313425981,1707335439620,-500.0,0.00027671,3]
[313425983,1707335439630,-766.26,0.00027671,3]
[313425985,1707335439638,-500.0,0.00027671,2]
[313425987,1707335439648,-867.91,0.00027671,3]
[313425989,1707335439657,-500.0,0.00027671,3]
[313425991,1707335439666,-500.0,0.00027671,3]
[313425993,1707335439675,-1309.1,0.00027671,3]
[313425996,1707335439683,-500.0,0.00027671,3]
[313425998,1707335439692,-500.0,0.00027671,3]
[313426000,1707335439701,-500.0,0.00027671,3]
[313426002,1707335439711,-500.0,0.00027671,3]
[313426004,1707335439725,-931.3,0.00027671,3]
[313426006,1707335439734,-3693.37,0.00027671,3]
[313426008,1707335439742,-500.0,0.00027671,2]
[313426010,1707335439751,-1189.47,0.00027671,3]
[313426012,1707335439761,-597.57,0.00027671,3]
[313426014,1707335439771,-500.0,0.00027671,3]
[313426016,1707335439779,-4465.38,0.00027671,3]
[313426018,1707335439788,-500.0,0.00027671,3]
[313426020,1707335439799,-1136.03,0.00027671,3]
[313426022,1707335439808,-5513.38,0.00027671,3]
[313426024,1707335439818,-722.16,0.00027671,3]
[313426026,1707335439827,-1091.76,0.00027671,3]
[313426028,1707335439836,-2201.41,0.00027671,3]
[313426029,1707335439845,-500.0,0.00027671,3]
[313426030,1707335439856,-6807.16,0.00027671,3]
[313426031,1707335439865,-781.4,0.00027671,3]
[313426032,1707335439875,-553.09,0.00027671,3]
[313426033,1707335439884,-500.0,0.00027671,3]
[313426034,1707335439893,-500.0,0.00027671,3]
[313426035,1707335439902,-1306.82,0.00027671,3]
[313426036,1707335439912,-399.4848484,0.00027671,2]
[313426037,1707335439921,-1489.47052726,0.00027842,2]
[313426038,1707335439930,-500.0,0.00027844,2]
[313426039,1707335439940,-500.0,0.00027844,2]
[313426040,1707335439949,-500.0,0.00027844,2]
[313426041,1707335439958,-243.48065561,0.00027844,2]
[313426042,1707335439969,-500.0,0.00027844,2]
[313426043,1707335439979,-196.35267702,0.00027844,2]
[313426044,1707335439989,-500.0,0.00027844,2]
[313426045,1707335439998,-523.97985736,0.00027844,2]
[313426046,1707335440007,-500.0,0.00027844,2]
[313426047,1707335440016,-500.0,0.00027844,2]
[313426050,1707335440026,-500.0,0.00027844,2]
[313426052,1707335440035,-500.0,0.00027844,2]
[313426054,1707335440045,-500.0,0.00027844,2]
[313426055,1707335440054,-500.0,0.00027844,2]
[313426057,1707335440063,-500.0,0.00027844,2]
[313426059,1707335440072,-500.0,0.00027844,2]
[313426061,1707335440081,-500.0,0.00027844,2]
[313426062,1707335440090,-500.0,0.00027844,2]
[313426063,1707335440100,-500.0,0.00027844,2]
[313426064,1707335440109,-509.58035443,0.00027844,2]
[313426066,1707335440118,-500.0,0.00027844,2]
[313426068,1707335440127,-500.0,0.00027844,2]
[313426069,1707335440136,-272.05130084,0.00027844,2]
[313426070,1707335440145,-500.0,0.00027844,2]
[313426072,1707335440154,-500.0,0.00027844,2]
[313426073,1707335440163,-500.0,0.00027844,2]
[313426075,1707335440171,-365.7250559,0.00027844,2]
[313426076,1707335440181,-500.0,0.00027844,2]
[313426077,1707335440190,-170.43645892,0.00027844,2]
[313426078,1707335440199,-200598.77292872,0.00027845,2]
[313426079,1707335440208,-983.25265192,0.00027942,2]
[313426080,1707335440219,-1297.15038027,0.00027943,2]
[313426081,1707335440228,-557.07360906,0.00027943,2]
[313426082,1707335440236,-174.33844047,0.00027943,2]
[313426083,1707335440246,-157.02288753,0.00027943,2]
[313426084,1707335440255,-175.49238929,0.00027943,2]
[313426085,1707335440264,-200.0,0.00027943,2]
[313426086,1707335440273,-309.9689732,0.00027943,2]
[313426087,1707335440283,-262.11572142,0.00027943,2]
[313426088,1707335440292,-155.0310062,0.00027943,2]
[313426089,1707335440301,-158.91003939,0.00027943,2]
[313426090,1707335440310,-303.93171575,0.00027943,2]
[313426091,1707335440319,-299.49492244,0.00027943,2]
[313426092,1707335440328,-165.18855517,0.00027943,2]
[313426093,1707335440338,-303.36941111,0.00027943,2]
[313426094,1707335440346,-159.22305658,0.00027943,2]
[313426095,1707335440355,-193.60117205,0.00027943,2]
[313426096,1707335440365,-216.76960516,0.00027943,2]
[313426098,1707335440374,-201.53465978,0.00027943,2]
[313426100,1707335440384,-161.6427166,0.00027943,2]
[313426101,1707335440393,-309.92873805,0.00027943,2]
[313426102,1707335440402,-11041.01173215,0.00027943,2]
[313426103,1707335440411,-534.69538579,0.00027943,2]
[313426105,1707335440420,-259.80831854,0.00027943,2]
[313426106,1707335440430,-176.76908854,0.00027943,2]
[313426107,1707335440439,-156.29322352,0.00027943,2]
[313426108,1707335440449,-155.25728071,0.00027943,2]
[313426109,1707335440458,-155.02015262,0.00027944,2]
[313426110,1707335440468,-256.18361592,0.00027945,2]
[313426111,1707335440478,-300.0,0.00027945,2]
[313426112,1707335440487,-1829.23863687,0.00027945,2]
[313426113,1707335440496,-500.0,0.00027945,3]
[313426114,1707335440506,-500.0,0.00027945,3]
[313426115,1707335440515,-500.0,0.00027945,3]
[313426116,1707335440524,-500.0,0.00027945,3]
[313426117,1707335440533,-296.66740215,0.00027945,3]
[313426118,1707335440542,-500.0,0.00027945,3]
[313426119,1707335440551,-766.26,0.00027945,3]
[313426120,1707335440560,-867.91,0.00027945,3]
[313426121,1707335440569,-500.0,0.00027945,3]
[313426122,1707335440578,-1309.1,0.00027945,3]
[313426123,1707335440587,-500.0,0.00027945,3]
[313426124,1707335440596,-500.0,0.00027945,3]
[313426125,1707335440606,-500.0,0.00027945,3]
[313426126,1707335440615,-500.0,0.00027945,3]
[313426127,1707335440625,-931.3,0.00027945,3]
[313426128,1707335440634,-3693.37,0.00027945,3]
[313426129,1707335440643,-500.0,0.00027945,2]
[313426130,1707335440653,-1189.47,0.00027945,3]
[313426131,1707335440661,-597.57,0.00027945,3]
[313426132,1707335440671,-500.0,0.00027945,3]
[313426133,1707335440680,-4465.38,0.00027945,3]
[313426134,1707335440690,-589.5059707,0.00027945,3]
[313426135,1707335440699,-1136.03,0.00027945,3]
[313426136,1707335440709,-5513.38,0.00027945,3]
[313426137,1707335440723,-722.16,0.00027945,3]
[313426138,1707335440732,-1091.76,0.00027945,3]
[313426139,1707335440741,-2201.41,0.00027945,3]
[313426140,1707335440751,-500.0,0.00027945,3]
[313426141,1707335440760,-6807.16,0.00027945,3]
[313426142,1707335440770,-781.4,0.00027945,3]
[313426143,1707335440779,-553.09,0.00027945,3]
[313426144,1707335440788,-500.0,0.00027945,3]
[313426145,1707335440799,-1306.82,0.00027945,3]
[313426146,1707335440809,-257.68,0.00027972,2]
[313426147,1707335440818,-200.0,0.00027979,2]
[313426148,1707335440827,-14059.51164821,0.00028,2]
[313426149,1707335440846,-2528.28432697,0.00028,2]
[313426226,1707335441566,-155.00155002,0.00024307,2]
[313426227,1707335441575,-2356.79,0.00027671,3]
[313426228,1707335441584,-2356.79,0.00027945,3]
[313426229,1707335441594,-35343.09136389,0.00028,2]
[313426230,1707335441603,-1716.49476713,0.00028,2]
[313426231,1707335441612,-64623.74130069,0.00028,20]
[313426295,1707335444023,-937.99234842,0.00028,20]
[313426340,1707335446241,-500.0,0.00027397,3]
[313426341,1707335446251,-320.57,0.00027397,3]
[313426342,1707335446263,-179.43,0.00027397,3]
[313426343,1707335446272,-500.0,0.00027671,3]
[313426344,1707335446281,-500.0,0.00027671,3]
[313426345,1707335446291,-500.0,0.00027945,3]
[313426346,1707335446380,-326.60217162,0.00028,20]
[313426362,1707335661646,154.95351295,0.000176,2]
[313426364,1707335692242,1096.83482457,0.000176,2]
[313426365,1707335692564,155.00155002,0.000176,2]
[313426366,1707335698260,240.21187926,0.000176,2]
[313426367,1707335710242,1129.72846753,0.000176,2]
[313426368,1707335710568,235.5072087,0.000176,2]
[313426369,1707335720271,172.78352833,0.000176,2]
[313426401,1707336084041,24900.0,0.0001797,2]
[313426402,1707336113344,7936.8890947,0.00017967,2]
[313426404,1707336366012,391.245638,0.00017839,2]
[313426407,1707336473209,2717.98041473,0.00018821,5]
[313426408,1707336485152,398.7102711,0.00017823,2]
[313426409,1707336487802,2717.98041473,0.00018821,5]
[313426410,1707336506804,3000.0,0.00017536,2]
[313426411,1707336509542,763.3743027,0.00016937,2]
[313426412,1707336511202,2400.51367044,0.00018819,5]
[313426413,1707336515605,155.00465014,0.00018247,3]
[313426414,1707336530358,1274.40857207,0.00017701,2]
[313426415,1707336535143,155.01550155,0.00016423,3]
[313426416,1707336543103,155.02480257,0.00017436,2]
[313426418,1707336555140,155.01550155,0.00016419,3]
[313426419,1707336579153,155.01550155,0.00016413,3]
[313426420,1707336597157,155.01240099,0.00016413,3]
[313426424,1707336617161,155.01705188,0.00016326,3]
[313426425,1707336618588,18557.6253368,0.00017145,2]
[313426426,1707336629359,24900.0,0.00017143,2]
[313426475,1707336633659,-155.01860223,0.00018137,2]
[313426476,1707336633678,-557.07360906,0.00018137,2]
[313426477,1707336633707,-3170.16770065,0.00018137,2]
[313426493,1707336639223,155.01860223,0.00016323,3]
[313426504,1707336639539,-1513.15613917,0.00018136,2]
[313426506,1707336639568,-1297.15038027,0.00018136,2]
[313426508,1707336639603,-640.35816557,0.00018136,2]
[313426509,1707336639629,-906.16625216,0.00018136,2]
[313426510,1707336639648,-15784.87999188,0.00018137,2]
[313426512,1707336639667,-1745.51182689,0.00018137,2]
[313426515,1707336639707,-155.01860223,0.00018137,2]
[313426517,1707336639733,-4495.12556647,0.00018137,2]
[313426519,1707336639759,-155.01860223,0.00018137,2]
[313426522,1707336639781,-155.01705188,0.00018138,2]